[Event "XLIII Sevilla Open 2018"]
[Site "Sevilla"]
[Date "2018.01.18"]
[Round "7"]
[White "Martinez Martin, David"]
[Black "Hernandez Munoz, Antonio Ramon"]
[Result "1-0"]
[ECO "B23"]
[WhiteElo "2399"]
[BlackElo "2225"]
[Annotator "ChessBase"]
[PlyCount "95"]
[EventDate "2018.??.??"]
[EventType "swiss"]
[EventCountry "ESP"]
[SourceTitle "playchess.com"]
[Source "ChessBase"]
[SourceQuality "1"]
[TimeControl "5400+30"]

1. e4 {[%emt 0:07:22]} c5 {[%emt 0:00:10]} 2. Nc3 {[%emt 0:00:32]} a6 {[%emt 0:00:07]} 3. Nge2 {[%emt 0:00:06]} d6 {[%emt 0:01:40]} 4. g3 {[%emt 0:00:05]} Nf6 {[%emt 0:01:02]} 5. Bg2 {[%emt 0:00:14]} e6 {[%emt 0:02:53]} 6. O-O {[%emt 0:00:27]} Be7 {[%emt 0:00:42]} 7. d4 {[%emt 0:00:04]} cxd4 {[%emt 0:00:36]} 8. Nxd4 {[%emt 0:00:05]} O-O {[%emt 0:01:17]} 9. b3 {[%emt 0:02:05]} Bd7 {[%emt 0:11:40]} 10. Bb2 {[%emt 0:00:33]} Nc6 {[%emt 0:05:10]} 11. Nce2 {[%emt 0:00:09]} e5 {[%emt 0:20:38]} 12. Nxc6 {[%emt 0:01:20]} Bxc6 {[%emt 0:00:13]} 13. Nc3 {[%emt 0:00:09]} b5 {[%emt 0:02:48]} 14. Nd5 {[%emt 0:00:38]} Nxd5 {[%emt 0:02:37]} 15. exd5 {[%emt 0:00:04]} Bd7 {[%emt 0:00:30]} 16. f4 {[%emt 0:00:28]} f6 {[%emt 0:02:51]} 17. Qd3 {[%emt 0:14:04]} Qb6+ {[%emt 0:11:21]} 18. Kh1 {[%emt 0:02:07]} Rae8 {[%emt 0:00:11]} 19. Rad1 {[%emt 0:13:36]} Bd8 {[%emt 0:06:10]} 20. fxe5 {[%emt 0:04:48]} fxe5 {[%emt 0:00:24]} 21. Be4 {[%emt 0:00:10]} g6 {[%emt 0:02:17]} 22. Bxg6 {[%emt 0:07:59]} hxg6 {[%emt 0:00:11]} 23. Qxg6+ {[%emt 0:00:07]} Kh8 {[%emt 0:00:03]} 24. Rf4 {[%emt 0:16:01]} Rxf4 {[%emt 0:18:07]} 25. gxf4 {[%emt 0:04:38]} Re6 {[%emt 0:00:06]} 26. Qh5+ {[%emt 0:04:14]} Kg7 {[%emt 0:00:05]} 27. fxe5 {[%emt 0:03:42]} dxe5 {[%emt 0:00:37]} 28. Rg1+ {[%emt 0:05:15]} Kf8 {[%emt 0:02:22]} 29. Qh8+ {[%emt 0:07:49]} Ke7 {[%emt 0:00:04]} 30. Bxe5 {[%emt 0:01:20]} Be8 {[%emt 0:03:56]} 31. Rg7+ {[%emt 0:03:37]} Bf7 {[%emt 0:00:04]} 32. Rxf7+ {[%emt 0:00:11]} Kxf7 {[%emt 0:00:09]} 33. Qg7+ {[%emt 0:00:06]} Ke8 {[%emt 0:00:06]} 34. Qg8+ {[%emt 0:00:08]} Ke7 {[%emt 0:00:47]} 35. Qxe6+ {[%emt 0:00:54]} Qxe6 {[%emt 0:00:05]} 36. dxe6 {[%emt 0:00:03]} Kxe6 {[%emt 0:00:02]} 37. Bg3 {[%emt 0:00:41]} Kd5 {[%emt 0:01:07]} 38. Kg2 {[%emt 0:01:01]} Kd4 {[%emt 0:00:33]} 39. Be1 {[%emt 0:00:06]} Ke3 {[%emt 0:01:12]} 40. Bf2+ {[%emt 0:01:58]} Kd2 {[%emt 0:00:23]} 41. c4 {[%emt 0:00:04]} Kc3 {[%emt 0:03:34]} 42. c5 {[%emt 0:00:23]} Kb2 {[%emt 0:00:39]} 43. h4 {[%emt 0:01:11]} Kxa2 {[%emt 0:00:25]} 44. h5 {[%emt 0:00:06]} a5 {[%emt 0:01:05]} 45. h6 {[%emt 0:00:23]} a4 {[%emt 0:01:09]} 46. bxa4 {[%emt 0:00:14]} b4 {[%emt 0:00:46]} 47. Bd4 {[%emt 0:00:32]} b3 {[%emt 0:00:31]} 48. h7 {[%emt 0:00:12]} 1-0